bitfinex/quotes_SOLUSD_20250525
["timestamp","ask_amount","ask_price","bid_price","bid_amount"]
[1748163721320,18.79181043,170.61,170.55,130.64]
[1748163721523,22.0505081,170.59,170.55,130.64]
[1748163721740,22.0505081,170.59,170.55,46.42]
[1748163723547,18.79181043,170.61,170.55,46.42]
[1748163723838,22.0505081,170.59,170.55,46.42]
[1748163727650,22.0505081,170.59,170.56,84.24]
[1748163727844,22.0505081,170.59,170.57,35.1]
[1748163729248,18.79181043,170.61,170.57,35.1]
[1748163729551,22.0505081,170.59,170.57,35.1]
[1748163729943,4.16362161,170.63,170.58,22.0505081]
[1748163730137,4.16362161,170.63,170.6,22.0505081]
[1748163730459,4.16362161,170.63,170.61,57.1505081]
[1748163730954,4.30578318,170.67,170.61,57.1505081]
[1748163731142,26.21412971,170.67,170.61,57.1505081]
[1748163732557,22.0505081,170.67,170.61,57.1505081]
[1748163732856,22.0505081,170.66,170.61,57.1505081]
[1748163733058,22.0505081,170.65,170.61,35.1]
[1748163733365,22.0505081,170.63,170.6,82.9]
[1748163733655,22.0505081,170.63,170.61,35.1]
[1748163734449,4.16362161,170.68,170.61,57.1505081]
[1748163734651,4.16362161,170.68,170.61,140.0505081]
[1748163734856,22.0505081,170.67,170.61,140.0505081]
[1748163735851,22.0505081,170.66,170.61,140.0505081]
[1748163736039,22.0505081,170.65,170.61,118.0]
[1748163736356,22.0505081,170.67,170.61,140.0505081]
[1748163736534,22.0505081,170.68,170.62,22.0505081]
[1748163736733,22.0505081,170.67,170.61,140.0505081]
[1748163736941,22.0505081,170.66,170.61,118.0]
[1748163737760,22.0505081,170.66,170.62,130.24]
[1748163738130,22.0505081,170.67,170.62,130.24]
[1748163739755,22.0505081,170.67,170.62,213.14]
[1748163740060,22.0505081,170.66,170.62,213.14]
[1748163742267,22.0505081,170.63,170.62,84.22]
[1748163742433,66.84231853,170.63,170.62,165.34]
[1748163745063,44.79181043,170.63,170.62,165.34]
[1748163745269,71.00594014,170.63,170.62,165.34]
[1748163745475,45.00594014,170.63,170.62,165.34]
[1748163745760,44.79181043,170.59,170.48,1.5561]
[1748163745962,22.0505081,170.51,170.49,81.12]
[1748163746138,44.79181043,170.56,170.48,1.5561]
[1748163746344,22.0505081,170.51,170.48,1.5561]
[1748163746544,22.0505081,170.51,170.49,35.1]
[1748163746854,22.95543204,170.56,170.49,35.1]
[1748163747060,22.0505081,170.52,170.49,35.1]
[1748163747264,22.0505081,170.51,170.49,35.1]
[1748163747441,22.0505081,170.52,170.5,84.22]
[1748163747645,22.0505081,170.52,170.5,130.24]
[1748163748147,22.95543204,170.56,170.5,130.24]
[1748163748347,22.0505081,170.52,170.5,130.24]
[1748163749367,4.16362161,170.55,170.5,130.24]
[1748163749869,22.0505081,170.54,170.5,130.24]
[1748163750644,26.21412971,170.55,170.5,130.24]
[1748163750861,22.0505081,170.55,170.5,130.24]
[1748163751462,18.79181043,170.56,170.5,130.24]
[1748163751764,22.0505081,170.55,170.5,130.24]
[1748163752448,22.0505081,170.54,170.5,130.24]
[1748163754965,22.0505081,170.53,170.5,130.24]
[1748163755156,22.0505081,170.53,170.51,35.1]
[1748163755573,22.0505081,170.52,170.51,35.1]
[1748163757066,40.84231853,170.52,170.51,35.1]
[1748163757679,40.84231853,170.52,170.5,130.24]
[1748163757847,40.84231853,170.52,170.51,35.1]
[1748163758469,18.79181043,170.51,170.5,130.24]
[1748163758666,40.84231853,170.51,170.5,165.34]
[1748163758874,40.84231853,170.51,170.5,165.36]
[1748163759067,18.79181043,170.52,170.5,165.36]
[1748163759262,40.84231853,170.51,170.5,165.36]
[1748163760776,22.0505081,170.51,170.5,165.36]
[1748163761473,26.0,170.54,170.5,165.36]
[1748163761773,22.0505081,170.53,170.5,165.36]
[1748163762448,22.0505081,170.51,170.5,165.36]
[1748163762644,40.84231853,170.51,170.5,84.22]
[1748163762869,40.84231853,170.51,170.5,165.0]
[1748163763757,22.0505081,170.51,170.5,165.0]
[1748163765851,40.84231853,170.51,170.5,165.0]
[1748163766675,40.84231853,170.51,170.5,129.9]
[1748163766980,66.84231853,170.51,170.5,165.02]
[1748163768769,66.84231853,170.51,170.5,84.22]
[1748163768985,62.89282663,170.51,170.5,129.9]
[1748163769173,62.89282663,170.51,170.5,165.02]
[1748163769472,40.84231853,170.51,170.5,165.02]
[1748163778356,18.79181043,170.51,170.5,165.02]
[1748163778562,40.84231853,170.51,170.5,165.02]
[1748163779282,18.79181043,170.51,170.5,165.02]
[1748163779474,40.84231853,170.51,170.5,165.02]
[1748163780379,18.79181043,170.51,170.5,165.02]
[1748163780688,48.0505081,170.51,170.5,165.02]
[1748163782590,66.84231853,170.51,170.5,165.02]
[1748163785566,44.79181043,170.51,170.5,165.02]
[1748163785788,48.0505081,170.51,170.5,165.02]
[1748163786792,26.0,170.51,170.5,165.02]
[1748163786985,48.0505081,170.51,170.5,165.02]
[1748163788801,48.0505081,170.53,170.5,165.02]
[1748163789206,52.21412971,170.53,170.5,165.02]
[1748163789583,26.21412971,170.53,170.5,165.02]
[1748163790876,22.0505081,170.53,170.5,165.02]
[1748163791085,4.16362161,170.54,170.5,165.02]
[1748163791266,4.16362161,170.54,170.51,22.0505081]
[1748163791466,4.16362161,170.54,170.52,57.1705081]
[1748163791694,4.16362161,170.54,170.53,7.9074]
[1748163792198,26.21412971,170.58,170.53,7.9074]
[1748163792405,26.21412971,170.58,170.54,35.12]
[1748163792815,4.16362161,170.58,170.56,22.0505081]
[1748163792975,4.16362161,170.58,170.57,57.1705081]
[1748163793172,2.49702161,170.58,170.57,58.7008081]
[1748163793591,2.49702161,170.58,170.57,36.6503]
[1748163793792,2.49702161,170.58,170.57,1.5303]
[1748163793982,2.49702161,170.58,170.57,58.7008081]
[1748163794293,22.0505081,170.61,170.57,36.6503]
[1748163794779,22.0505081,170.6,170.57,36.6503]
[1748163795004,18.79181043,170.63,170.57,36.6503]
[1748163795293,22.0505081,170.6,170.57,36.6503]
[1748163795593,22.0505081,170.61,170.57,36.6503]
[1748163795796,26.0,170.64,170.57,36.6503]
[1748163796001,22.0505081,170.63,170.57,58.7008081]
[1748163796393,22.0505081,170.64,170.58,22.0505081]
[1748163796703,22.0505081,170.64,170.59,22.0505081]
[1748163796880,22.0505081,170.64,170.6,35.12]
[1748163797480,22.0505081,170.64,170.61,129.54]
[1748163797884,18.79181043,170.66,170.61,129.54]
[1748163798095,22.0505081,170.65,170.61,129.54]
[1748163798280,18.79181043,170.66,170.61,129.54]
[1748163798475,22.0505081,170.65,170.61,129.54]
[1748163799211,11.03980048,170.73,170.61,129.54]
[1748163799212,8.137,170.73,170.62,22.0505081]
[1748163799389,8.137,170.73,170.63,35.1]
[1748163799390,22.0505081,170.68,170.63,35.1]
[1748163799711,22.0505081,170.66,170.63,35.1]
[1748163799888,22.0505081,170.64,170.61,84.24]
[1748163800205,22.0505081,170.65,170.62,80.4]
[1748163800409,22.0505081,170.66,170.62,80.4]
[1748163800784,18.64964886,170.68,170.62,80.4]
[1748163800988,22.0505081,170.67,170.62,80.4]
[1748163801704,18.64964886,170.68,170.62,80.4]
[1748163801705,22.0505081,170.65,170.62,80.4]
[1748163802078,18.64964886,170.68,170.62,80.4]
[1748163802280,22.0505081,170.66,170.62,80.4]
[1748163803086,22.0505081,170.65,170.62,80.4]
[1748163803297,18.64964886,170.68,170.62,80.4]
[1748163803298,22.0505081,170.66,170.62,80.4]
[1748163804617,22.0505081,170.67,170.62,80.4]
[1748163804998,26.14216157,170.69,170.62,80.4]
[1748163805184,22.0505081,170.68,170.63,22.0505081]
[1748163805884,22.0505081,170.68,170.64,84.22]
[1748163806113,22.0505081,170.68,170.65,35.1]
[1748163806314,44.64964886,170.7,170.65,35.1]
[1748163806315,22.0505081,170.67,170.65,35.1]
[1748163807116,22.0505081,170.69,170.65,35.1]
[1748163807423,22.0505081,170.68,170.65,35.1]
[1748163807599,22.0505081,170.68,170.66,84.22]
[1748163808703,44.64964886,170.7,170.66,84.22]
[1748163808907,22.0505081,170.68,170.66,84.22]
[1748163810329,22.0505081,170.69,170.66,84.22]
[1748163812225,26.14216157,170.71,170.66,84.22]
[1748163812416,22.0505081,170.69,170.67,45.28]
[1748163812627,22.0505081,170.69,170.68,35.1]
[1748163812928,26.14216157,170.71,170.68,35.1]
[1748163813313,22.0505081,170.7,170.68,35.1]
[1748163814021,26.0,170.73,170.68,35.1]
[1748163814225,22.0505081,170.72,170.68,35.1]
[1748163814722,26.0,170.72,170.68,35.1]
[1748163814924,48.0505081,170.72,170.68,35.1]
[1748163815529,22.0505081,170.71,170.66,167.12]
[1748163815713,22.0505081,170.69,170.67,80.36]
[1748163816223,22.0505081,170.7,170.67,80.36]
[1748163816425,22.0505081,170.71,170.67,80.36]
[1748163817422,26.0,170.72,170.67,80.36]
[1748163817728,22.0505081,170.71,170.67,80.36]
[1748163819028,22.0505081,170.7,170.67,80.36]
[1748163819743,26.0,170.72,170.67,80.36]
[1748163819912,22.0505081,170.71,170.67,80.36]
[1748163821043,26.0,170.72,170.67,80.36]
[1748163821325,22.0505081,170.71,170.67,80.36]
[1748163822233,26.0,170.72,170.67,80.36]
[1748163822420,22.0505081,170.71,170.67,80.36]
[1748163823135,26.0,170.72,170.67,80.36]
[1748163823428,22.0505081,170.71,170.67,80.36]
[1748163824144,22.0505081,170.7,170.67,80.36]
[1748163825715,22.0505081,170.7,170.68,80.0]
[1748163826234,22.0505081,170.7,170.66,84.22]
[1748163826426,22.0505081,170.67,170.66,84.22]
[1748163826617,22.0505081,170.67,170.66,164.22]
[1748163826939,26.0,170.71,170.66,164.22]
[1748163827243,22.0505081,170.69,170.66,164.22]
[1748163827738,4.77479141,170.76,170.66,164.22]
[1748163827916,22.0505081,170.7,170.66,164.22]
[1748163828641,22.0505081,170.67,170.66,164.22]
[1748163828946,22.0505081,170.67,170.66,80.0]
[1748163829145,22.0505081,170.68,170.66,80.0]
[1748163829644,22.0505081,170.69,170.67,80.0]
[1748163830438,4.77479141,170.76,170.67,102.0505081]
[1748163830638,22.0505081,170.73,170.67,102.0505081]
[1748163830836,22.0505081,170.73,170.68,22.0505081]
[1748163831036,26.0,170.74,170.68,22.0505081]
[1748163831218,18.79181043,170.75,170.68,22.0505081]
[1748163831420,22.0505081,170.73,170.68,22.0505081]
[1748163831615,18.79181043,170.75,170.68,22.0505081]
[1748163831836,22.0505081,170.73,170.68,22.0505081]
[1748163832844,22.0505081,170.73,170.67,80.0]
[1748163833030,22.0505081,170.73,170.67,102.0505081]
[1748163834044,22.0505081,170.72,170.67,80.0]
[1748163834228,18.79181043,170.75,170.67,80.0]
[1748163834429,22.0505081,170.73,170.68,80.0]
[1748163834943,22.0505081,170.73,170.69,80.0]
[1748163836049,22.0505081,170.73,170.67,22.0505081]
[1748163836229,22.0505081,170.73,170.7,80.0]
[1748163837242,22.0505081,170.74,170.7,80.0]
[1748163837650,22.0505081,170.74,170.71,84.18]
[1748163839128,18.79181043,170.75,170.71,84.18]
[1748163839335,22.0505081,170.74,170.71,84.18]
[1748163839953,22.0505081,170.73,170.71,84.18]
[1748163840341,22.0505081,170.72,170.71,84.18]
[1748163840652,22.0505081,170.73,170.71,164.16]
[1748163840839,26.0,170.76,170.71,164.16]
[1748163841048,22.0505081,170.75,170.71,164.16]
[1748163841949,22.0505081,170.74,170.71,164.16]
[1748163842554,26.0,170.76,170.71,164.16]
[1748163842752,22.0505081,170.74,170.71,164.16]
[1748163843140,26.0,170.76,170.71,164.16]
[1748163843331,22.0505081,170.74,170.71,164.16]
[1748163843958,22.0505081,170.75,170.71,164.16]
[1748163844650,22.0505081,170.74,170.71,164.16]
[1748163844963,22.0505081,170.73,170.71,164.16]
[1748163846253,22.0505081,170.73,170.72,79.98]
[1748163846451,22.0505081,170.74,170.72,79.98]
[1748163846657,26.0,170.78,170.72,79.98]
[1748163846841,22.0505081,170.76,170.72,79.98]
[1748163847043,22.0505081,170.75,170.72,79.98]
[1748163847760,18.79181043,170.79,170.72,79.98]
[1748163847961,26.0,170.8,170.74,22.0505081]
[1748163848164,48.0505081,170.81,170.75,57.1305081]
[1748163848659,22.0505081,170.8,170.75,57.1305081]
[1748163849259,22.0505081,170.8,170.75,35.08]
[1748163849444,22.0505081,170.79,170.75,35.08]
[1748163850359,26.0,170.81,170.75,35.08]
[1748163850542,22.0505081,170.79,170.75,35.08]
[1748163851461,26.0,170.81,170.75,35.08]
[1748163851637,22.0505081,170.79,170.75,35.08]
[1748163851960,22.0505081,170.79,170.74,22.0505081]
[1748163851961,18.79181043,170.8,170.76,79.96]
[1748163852167,40.84231853,170.8,170.76,79.96]
[1748163852769,18.79181043,170.8,170.76,79.96]
[1748163852936,22.0505081,170.79,170.76,79.96]
[1748163853362,18.79181043,170.8,170.76,79.96]
[1748163853563,22.0505081,170.79,170.76,79.96]
[1748163855142,22.0505081,170.78,170.76,79.96]
[1748163855448,22.0505081,170.79,170.76,79.96]
[1748163856566,22.0505081,170.78,170.76,79.96]
[1748163858067,22.0505081,170.77,170.71,167.08]
[1748163858370,22.0505081,170.76,170.72,79.6]
[1748163858868,22.0505081,170.76,170.73,79.6]
[1748163859169,22.0505081,170.77,170.73,79.6]
[1748163864370,22.0505081,170.79,170.73,101.6505081]
[1748163866667,18.79181043,170.8,170.73,101.6505081]
[1748163866972,22.0505081,170.78,170.73,101.6505081]
[1748163867545,22.0505081,170.78,170.74,84.14]
[1748163867966,22.0505081,170.79,170.74,84.14]
[1748163868960,30.16674877,170.81,170.74,106.1905081]
[1748163869162,22.0505081,170.8,170.74,106.1905081]
[1748163869977,22.0505081,170.79,170.74,106.1905081]
[1748163870161,22.0505081,170.79,170.74,84.14]
[1748163870361,22.0505081,170.76,170.75,79.6]
[1748163870766,44.79181043,170.75,170.74,84.14]
[1748163871068,18.79181043,170.71,170.64,8.043]
[1748163871276,44.79181043,170.69,170.58,91.24962611]
[1748163871573,22.0505081,170.63,170.58,8.34962611]
[1748163871774,22.0505081,170.63,170.58,30.40013421]
[1748163872159,22.0505081,170.63,170.58,8.34962611]
[1748163872361,22.0505081,170.63,170.59,35.06]
[1748163875076,18.79181043,170.67,170.59,35.06]
[1748163875277,22.0505081,170.64,170.59,35.06]
[1748163876681,22.0505081,170.61,170.57,8.043]
[1748163876885,22.0505081,170.61,170.57,1.6323]
[1748163877088,22.0505081,170.63,170.58,35.08]
[1748163877680,22.0505081,170.63,170.59,128.74]
[1748163878379,22.0505081,170.64,170.59,128.74]
[1748163878880,22.0505081,170.63,170.59,128.74]
[1748163879378,22.0505081,170.62,170.59,128.74]
[1748163879687,22.0505081,170.63,170.59,44.56]
[1748163881466,22.0505081,170.62,170.57,1.6323]
[1748163881783,22.0505081,170.62,170.58,35.08]
[1748163882786,22.0505081,170.6,170.56,82.9]
[1748163883087,22.0505081,170.6,170.57,35.08]
[1748163883987,18.79181043,170.64,170.57,35.08]
[1748163883988,22.0505081,170.59,170.57,35.08]
[1748163886072,22.0505081,170.59,170.54,22.0505081]
[1748163886269,22.0505081,170.59,170.55,35.08]
[1748163886786,22.0505081,170.58,170.56,35.08]
[1748163887488,22.0505081,170.58,170.57,128.48]
[1748163888489,22.0505081,170.59,170.57,128.48]
[1748163890500,22.0505081,170.58,170.57,84.22]
[1748163890793,66.84231853,170.58,170.57,163.58]
[1748163893579,66.84231853,170.58,170.57,128.48]
[1748163893882,66.84231853,170.58,170.57,163.58]
[1748163894595,26.0,170.58,170.57,163.58]
[1748163894806,22.0505081,170.6,170.57,163.58]
[1748163894983,22.0505081,170.61,170.57,163.58]
[1748163895380,21.5505081,170.61,170.57,163.58]
[1748163896283,22.0505081,170.6,170.57,163.58]
[1748163897187,22.0505081,170.59,170.57,163.58]
[1748163898284,22.0505081,170.58,170.57,163.58]
[1748163898490,22.0505081,170.58,170.57,84.22]
[1748163898694,22.0505081,170.58,170.57,163.6]
[1748163899289,22.0505081,170.58,170.57,128.5]
[1748163899580,40.84231853,170.58,170.57,163.6]
[1748163900501,66.84231853,170.58,170.57,163.6]
[1748163902797,22.0505081,170.59,170.57,163.6]
[1748163902989,5.68934877,170.66,170.57,163.6]
[1748163902990,22.0505081,170.61,170.57,163.6]
[1748163903195,18.79181043,170.63,170.57,163.6]
[1748163903196,22.0505081,170.6,170.57,163.6]
[1748163906003,22.0505081,170.61,170.57,163.6]
[1748163907083,48.0505081,170.62,170.57,185.6505081]
[1748163908107,22.0505081,170.62,170.57,185.6505081]
[1748163910004,22.0505081,170.61,170.57,163.6]
[1748163910202,22.0505081,170.6,170.57,163.6]
[1748163910606,22.0505081,170.6,170.58,35.1]
[1748163911503,22.0505081,170.61,170.58,35.1]
[1748163912622,18.79181043,170.63,170.57,128.5]
[1748163912928,40.84231853,170.58,170.57,84.22]
[1748163913091,40.84231853,170.58,170.57,163.6]
[1748163915209,44.79181043,170.58,170.57,163.6]
[1748163915387,66.84231853,170.58,170.57,163.6]
[1748163917698,48.0505081,170.58,170.57,163.6]
[1748163918021,26.21725687,170.59,170.57,163.6]
[1748163918397,22.0505081,170.59,170.57,163.6]
[1748163918613,22.0505081,170.58,170.57,163.6]
[1748163919805,40.84231853,170.58,170.57,163.6]
[1748163920306,66.84231853,170.58,170.57,163.6]
[1748163920502,66.84231853,170.58,170.57,128.5]
[1748163920825,40.84231853,170.58,170.57,163.6]
[1748163921421,45.0090673,170.58,170.57,163.6]
[1748163922924,45.0090673,170.58,170.57,128.5]
[1748163923219,45.0090673,170.58,170.57,163.6]
[1748163923608,40.84231853,170.58,170.57,163.6]
[1748163924716,40.84231853,170.58,170.44,6.5052]
[1748163924717,44.79181043,170.54,170.44,6.5052]
[1748163924932,18.79181043,170.48,170.45,79.08]
[1748163925099,18.79181043,170.48,170.46,35.1]
[1748163925295,18.79181043,170.48,170.47,35.1]
[1748163925804,18.79181043,170.46,170.45,43.98]
[1748163926009,18.79181043,170.46,170.4,6.5052]
[1748163926212,40.84231853,170.46,170.45,43.98]
[1748163926523,40.84231853,170.46,170.45,79.08]
[1748163927419,26.0,170.46,170.45,79.08]
[1748163927716,48.0505081,170.46,170.45,163.34]
[1748163928700,66.84231853,170.46,170.45,163.34]
[1748163928900,66.84231853,170.46,170.45,128.24]
[1748163929210,66.84231853,170.46,170.45,163.36]
[1748163933836,4.15955317,170.5,170.45,163.36]
[1748163934045,4.15955317,170.5,170.46,22.0505081]
[1748163934215,4.15955317,170.5,170.47,35.12]
[1748163934806,26.21006127,170.5,170.47,35.12]
[1748163935530,22.0505081,170.49,170.47,35.12]
[1748163935732,22.19266967,170.5,170.47,35.12]
[1748163935923,0.14216157,170.5,170.47,35.32]
[1748163936321,22.0505081,170.49,170.47,35.32]
[1748163937030,22.19266967,170.5,170.47,35.32]
[1748163937727,22.19266967,170.5,170.47,0.2]
[1748163938031,22.19266967,170.5,170.48,35.12]
[1748163938242,40.70015696,170.49,170.47,0.2]
[1748163938411,40.70015696,170.49,170.48,35.12]
[1748163938412,18.79181043,170.49,170.48,35.12]
[1748163938606,40.84231853,170.49,170.48,35.12]
[1748163938814,18.79181043,170.48,170.47,0.2]
[1748163939112,40.84231853,170.48,170.47,35.32]
[1748163940735,66.84231853,170.48,170.47,35.32]
[1748163942729,40.84231853,170.48,170.47,35.32]
[1748163947240,40.84231853,170.48,170.47,0.2]
[1748163947449,40.84231853,170.48,170.47,35.32]
[1748163948940,40.84231853,170.48,170.47,79.04]
[1748163949266,18.79181043,170.48,170.47,79.04]
[1748163949429,40.84231853,170.48,170.47,79.04]
[1748163950637,40.84231853,170.48,170.47,43.92]
[1748163950843,40.84231853,170.48,170.47,79.06]
[1748163954832,18.79181043,170.46,170.45,84.26]
[1748163955031,40.84231853,170.46,170.45,163.12]
[1748163961955,44.79181043,170.42,170.35,6.4843]
[1748163962137,22.0505081,170.37,170.36,43.72]
[1748163962333,40.84231853,170.37,170.36,43.72]
[1748163963244,40.84231853,170.37,170.36,78.86]
[1748163963445,48.0505081,170.39,170.36,78.86]
[1748163963645,48.19266967,170.4,170.36,78.86]
[1748163963846,26.14216157,170.4,170.36,78.86]
[1748163964042,26.0,170.4,170.36,78.86]
[1748163964358,26.0,170.4,170.36,100.9105081]
[1748163965848,18.64964886,170.41,170.36,100.9105081]
[1748163966356,40.70015696,170.41,170.36,100.9105081]
[1748163966556,40.70015696,170.41,170.36,78.86]
[1748163966756,22.0505081,170.4,170.36,78.86]
[1748163967449,22.0505081,170.4,170.37,84.32]
[1748163967650,0.14216157,170.4,170.38,35.14]
[1748163967849,18.79181043,170.38,170.37,84.32]
[1748163968164,40.84231853,170.38,170.37,119.46]
[1748163975206,18.79181043,170.38,170.37,119.46]
[1748163975347,40.84231853,170.38,170.37,119.46]
[1748163975674,40.84231853,170.38,170.37,84.32]
[1748163975849,40.84231853,170.38,170.37,119.46]
[1748163976052,40.84231853,170.38,170.37,84.32]
[1748163976257,40.84231853,170.38,170.37,119.46]
[1748163976757,40.84231853,170.38,170.37,84.32]
[1748163977070,40.84231853,170.38,170.37,119.46]
[1748163977971,40.84231853,170.38,170.37,84.32]
[1748163978155,40.84231853,170.38,170.37,119.46]
[1748163978357,45.0018717,170.38,170.37,43.46]
[1748163979577,45.0018717,170.38,170.37,78.6]
[1748163980175,45.0018717,170.38,170.24,1.5111]
[1748163980176,26.0,170.35,170.24,1.5111]
[1748163980383,4.15955317,170.38,170.32,22.0505081]
[1748163980586,40.84231853,170.37,170.33,35.14]
[1748163980754,48.0505081,170.35,170.34,35.14]
[1748163981075,66.84231853,170.35,170.34,35.14]
[1748163982577,18.79181043,170.34,170.28,22.0505081]
[1748163982759,40.84231853,170.34,170.29,57.1905081]
[1748163983158,26.0,170.35,170.29,57.1905081]
[1748163983159,18.79181043,170.35,170.31,22.0505081]
[1748163983366,18.79181043,170.35,170.32,35.14]
[1748163983578,26.0,170.36,170.33,22.0505081]
[1748163983777,26.0,170.36,170.34,35.14]
[1748163984182,44.79181043,170.37,170.34,35.14]
[1748163985679,30.15955317,170.41,170.34,35.14]
[1748163985860,26.14216157,170.38,170.34,57.1905081]
[1748163986060,26.14216157,170.38,170.34,35.14]
[1748163986262,48.19266967,170.38,170.34,35.14]
[1748163987559,48.19266967,170.38,170.35,127.82]
[1748163987760,48.19266967,170.38,170.36,35.16]
[1748163987961,26.0,170.38,170.36,35.16]
[1748163988270,0.14216157,170.4,170.36,35.16]
[1748163988271,48.19266967,170.4,170.36,35.16]
[1748163988664,22.19266967,170.4,170.36,35.16]
[1748163990287,22.0505081,170.39,170.35,84.36]
[1748163990496,22.0505081,170.38,170.36,78.62]
[1748163990692,40.84231853,170.37,170.35,84.36]
[1748163991003,18.79181043,170.37,170.36,78.62]
[1748163992089,40.84231853,170.37,170.36,78.62]
[1748163994003,18.79181043,170.37,170.36,78.62]
[1748163994193,40.84231853,170.37,170.36,78.62]
[1748163998097,40.84231853,170.37,170.36,43.46]
[1748163998296,18.79181043,170.33,170.28,1.5257]
[1748163998505,44.79181043,170.3,170.29,43.48]
[1748163998690,66.84231853,170.3,170.29,78.64]
[1748163999496,44.79181043,170.3,170.29,78.64]
[1748164000005,66.84231853,170.3,170.29,78.64]
[1748164001296,4.15955317,170.32,170.29,78.64]
[1748164001496,40.84231853,170.33,170.29,78.64]
[1748164001497,22.9513636,170.33,170.29,78.64]
[1748164003501,4.15955317,170.33,170.29,100.6905081]
[1748164003701,26.0,170.34,170.29,78.64]
[1748164003901,48.0505081,170.34,170.29,78.64]
[1748164004711,22.0505081,170.33,170.29,78.64]
[1748164007216,22.0505081,170.32,170.29,43.48]
[1748164007409,22.0505081,170.32,170.3,35.16]
[1748164007608,40.84231853,170.32,170.31,84.36]
[1748164008112,18.79181043,170.32,170.31,84.36]
[1748164008696,40.84231853,170.32,170.31,84.36]
[1748164010120,18.79181043,170.32,170.31,84.36]
[1748164010323,26.0,170.34,170.31,84.36]
[1748164010324,26.0,170.33,170.31,84.36]
[1748164010527,26.0,170.33,170.32,35.16]
[1748164011205,48.0505081,170.33,170.32,35.16]
[1748164011615,66.84231853,170.33,170.32,35.16]
[1748164013020,66.84231853,170.33,170.31,84.36]
[1748164013221,18.79181043,170.32,170.31,84.36]
[1748164013526,40.84231853,170.32,170.31,119.52]
[1748164015209,18.79181043,170.32,170.31,119.52]
[1748164015413,40.84231853,170.32,170.31,119.52]
[1748164017121,40.84231853,170.32,170.31,84.36]
[1748164017316,40.84231853,170.32,170.31,119.52]
[1748164018216,40.84231853,170.32,170.31,84.36]
[1748164018514,40.84231853,170.32,170.31,119.52]
[1748164020826,40.84231853,170.32,170.31,84.36]
[1748164021007,40.84231853,170.32,170.31,119.52]
[1748164021533,0.14216157,170.32,170.31,119.52]
[1748164021829,66.84231853,170.32,170.31,119.52]
[1748164022206,44.79181043,170.32,170.31,119.52]
[1748164022525,18.79181043,170.32,170.31,119.52]
[1748164022713,44.79181043,170.32,170.31,119.52]
[1748164025033,66.84231853,170.32,170.31,119.52]
[1748164028036,66.84231853,170.32,170.31,84.36]
[1748164028236,66.84231853,170.32,170.31,119.52]
[1748164028624,40.84231853,170.32,170.31,119.52]
[1748164028826,40.84231853,170.32,170.31,127.56]
[1748164029026,40.84231853,170.32,170.31,162.72]
[1748164029319,40.84231853,170.32,170.23,7.6452]
[1748164029320,18.79181043,170.28,170.2,28.0960081]
[1748164029528,26.0,170.29,170.2,28.0960081]
[1748164029529,22.0505081,170.26,170.21,78.36]
[1748164029733,18.79181043,170.25,170.21,100.4105081]
[1748164029920,18.79181043,170.25,170.21,78.36]
[1748164030534,22.19266967,170.25,170.21,78.36]
[1748164031645,18.64964886,170.24,170.21,78.36]
[1748164031822,22.0505081,170.24,170.22,78.36]
[1748164032647,40.84231853,170.23,170.22,43.2]
[1748164032945,40.84231853,170.23,170.22,78.36]
[1748164033645,40.84231853,170.23,170.15,23.6806081]
[1748164033817,22.0505081,170.21,170.16,78.36]
[1748164034017,22.0505081,170.21,170.15,23.6806081]
[1748164034018,22.0505081,170.18,170.17,78.36]
[1748164034448,22.19266967,170.18,170.17,78.36]
[1748164034747,0.14216157,170.18,170.17,78.36]